[Event "Titled Tuesday Blitz November 29 Late 2022"]
[White "Kourkoulos-Arditis, Stamatis"]
[Black "Meduri, Aakaash"]
[WhiteFideId "4221990"]
[BlackFideId "2032252"]
[WhiteElo "2429"]
[BlackElo "2113"]
[Result "1-0"]
[Round "01"]
[TimeControl "180+1"]
[Date "2022.11.30"]
[WhiteClock "0:00:25"]
[BlackClock "0:00:02"]

1. e4 {[%clk 0:02:59]}  c5 {[%clk 0:02:58]} 2. Nf3 {[%clk 0:02:57]}  d6 {[%clk 0:02:59]} 3. Bb5+ {[%clk 0:02:56]}  Bd7 {[%clk 0:02:59]} 4. Bxd7+ {[%clk 0:02:54]}  Nxd7 {[%clk 0:03:00]} 5. O-O {[%clk 0:02:54]}  Ngf6 {[%clk 0:02:59]} 6. Re1 {[%clk 0:02:55]}  e6 {[%clk 0:02:50]} 7. c3 {[%clk 0:02:55]}  Be7 {[%clk 0:02:48]} 8. d4 {[%clk 0:02:55]}  O-O {[%clk 0:02:47]} 9. Nbd2 {[%clk 0:02:53]}  Qc7 {[%clk 0:02:44]} 10. e5 {[%clk 0:02:35]}  dxe5 {[%clk 0:02:12]} 11. dxe5 {[%clk 0:02:36]}  Ng4 {[%clk 0:02:12]} 12. Qe2 {[%clk 0:02:34]}  Kh8 {[%clk 0:01:53]} 13. h3 {[%clk 0:02:19]}  Nh6 {[%clk 0:01:53]} 14. g4 {[%clk 0:02:00]}  Rad8 {[%clk 0:01:32]} 15. Nf1 {[%clk 0:01:58]}  Ng8 {[%clk 0:01:27]} 16. Ng3 {[%clk 0:01:57]}  a6 {[%clk 0:01:22]} 17. Bf4 {[%clk 0:01:49]}  b5 {[%clk 0:01:22]} 18. Rad1 {[%clk 0:01:48]}  Nb6 {[%clk 0:01:20]} 19. Ne4 {[%clk 0:01:46]}  f6 {[%clk 0:00:52]} 20. exf6 {[%clk 0:01:31]}  Qxf4 {[%clk 0:00:52]} 21. fxe7 {[%clk 0:01:31]}  Nxe7 {[%clk 0:00:51]} 22. Rxd8 {[%clk 0:01:31]}  Rxd8 {[%clk 0:00:47]} 23. Neg5 {[%clk 0:01:31]}  Rd6 {[%clk 0:00:20]} 24. Qc2 {[%clk 0:00:55]}  g6 {[%clk 0:00:12]} 25. Re4 {[%clk 0:00:43]}  Qf6 {[%clk 0:00:10]} 26. Qe2 {[%clk 0:00:43]}  Ned5 {[%clk 0:00:03]} 27. Nxe6 {[%clk 0:00:40]}  Nd7 {[%clk 0:00:01]} 28. Neg5 {[%clk 0:00:28]}  h6 {[%clk 0:00:02]} 29. Re8+ {[%clk 0:00:28]}  Nf8 {[%clk 0:00:02]} 30. Ne4 {[%clk 0:00:25]} 1-0


[Site "https://www.chess.com"]

[Event "Titled Tuesday Blitz November 29 Late 2022"]
[White "Kowalski, Igor"]
[Black "Khandelwal, Ankush"]
[WhiteFideId "1172468"]
[BlackFideId "413470"]
[WhiteElo "2317"]
[BlackElo "2271"]
[Result "1-0"]
[Round "01"]
[TimeControl "180+1"]
[Date "2022.11.30"]
[WhiteClock "0:01:00"]
[BlackClock "0:00:03"]

1. d4 {[%clk 0:02:59]}  Nf6 {[%clk 0:02:59]} 2. Nf3 {[%clk 0:02:59]}  g6 {[%clk 0:03:00]} 3. Nc3 {[%clk 0:03:00]}  Bg7 {[%clk 0:03:00]} 4. e4 {[%clk 0:03:01]}  d6 {[%clk 0:02:58]} 5. Bc4 {[%clk 0:03:01]}  c6 {[%clk 0:02:55]} 6. Bb3 {[%clk 0:03:01]}  b5 {[%clk 0:02:53]} 7. Qe2 {[%clk 0:02:47]}  b4 {[%clk 0:02:43]} 8. Nd1 {[%clk 0:02:45]}  O-O {[%clk 0:02:39]} 9. c4 {[%clk 0:02:42]}  bxc3 {[%clk 0:02:07]} 10. Nxc3 {[%clk 0:02:41]}  Ba6 {[%clk 0:02:07]} 11. Bc4 {[%clk 0:02:39]}  Bxc4 {[%clk 0:02:01]} 12. Qxc4 {[%clk 0:02:39]}  d5 {[%clk 0:01:14]} 13. exd5 {[%clk 0:02:39]}  cxd5 {[%clk 0:01:14]} 14. Qe2 {[%clk 0:02:37]}  Nc6 {[%clk 0:01:03]} 15. O-O {[%clk 0:02:37]}  Ne4 {[%clk 0:00:53]} 16. Nxe4 {[%clk 0:01:54]}  dxe4 {[%clk 0:00:54]} 17. Qxe4 {[%clk 0:01:55]}  Nxd4 {[%clk 0:00:54]} 18. Bg5 {[%clk 0:01:50]}  Nxf3+ {[%clk 0:00:52]} 19. Qxf3 {[%clk 0:01:51]}  Bxb2 {[%clk 0:00:41]} 20. Rab1 {[%clk 0:01:49]}  Bg7 {[%clk 0:00:19]} 21. Rb7 {[%clk 0:01:47]}  f6 {[%clk 0:00:17]} 22. Qb3+ {[%clk 0:01:44]}  Kh8 {[%clk 0:00:17]} 23. Be3 {[%clk 0:01:44]}  a5 {[%clk 0:00:16]} 24. Rd1 {[%clk 0:01:44]}  Qe8 {[%clk 0:00:15]} 25. Rdd7 {[%clk 0:01:45]}  a4 {[%clk 0:00:14]} 26. Qe6 {[%clk 0:01:45]}  Rd8 {[%clk 0:00:09]} 27. g3 {[%clk 0:01:32]}  Rxd7 {[%clk 0:00:09]} 28. Rxd7 {[%clk 0:01:33]}  Qf7 {[%clk 0:00:09]} 29. Qc6 {[%clk 0:01:19]}  Qxa2 {[%clk 0:00:08]} 30. Rxe7 {[%clk 0:01:19]}  f5 {[%clk 0:00:07]} 31. Qd7 {[%clk 0:01:16]}  Qg8 {[%clk 0:00:03]} 32. Rxg7 {[%clk 0:01:06]}  Qxg7 {[%clk 0:00:04]} 33. Bd4 {[%clk 0:01:06]}  Rf6 {[%clk 0:00:05]} 34. Qe8+ {[%clk 0:01:01]}  Rf8 {[%clk 0:00:03]} 35. Qxf8# {[%clk 0:01:00]} 1-0


[Site "https://www.chess.com"]

[Event "Titled Tuesday Blitz November 29 Late 2022"]
[White "Kuzmicz, Krystian"]
[Black "Rios Escobar, Adan"]
[WhiteFideId "1119125"]
[BlackFideId "3403645"]
[WhiteElo "2380"]
[BlackElo "2308"]
[Result "1-0"]
[Round "01"]
[TimeControl "180+1"]
[Date "2022.11.30"]
[WhiteClock "0:01:22"]
[BlackClock "0:00:03"]

1. e4 {[%clk 0:03:00]}  c5 {[%clk 0:02:55]} 2. d3 {[%clk 0:03:00]}  g6 {[%clk 0:02:50]} 3. g3 {[%clk 0:03:00]}  Bg7 {[%clk 0:02:51]} 4. Bg2 {[%clk 0:03:00]}  Nc6 {[%clk 0:02:51]} 5. f4 {[%clk 0:03:01]}  d6 {[%clk 0:02:47]} 6. Nf3 {[%clk 0:03:02]}  e6 {[%clk 0:02:42]} 7. O-O {[%clk 0:03:01]}  Nge7 {[%clk 0:02:43]} 8. c3 {[%clk 0:03:02]}  Rb8 {[%clk 0:02:43]} 9. Be3 {[%clk 0:03:03]}  b5 {[%clk 0:02:41]} 10. d4 {[%clk 0:03:03]}  cxd4 {[%clk 0:02:28]} 11. cxd4 {[%clk 0:03:04]}  d5 {[%clk 0:02:27]} 12. e5 {[%clk 0:03:04]}  b4 {[%clk 0:02:25]} 13. Nbd2 {[%clk 0:03:03]}  Nf5 {[%clk 0:02:23]} 14. Bf2 {[%clk 0:03:03]}  Ba6 {[%clk 0:02:22]} 15. Re1 {[%clk 0:03:03]}  Qb6 {[%clk 0:02:15]} 16. Nb3 {[%clk 0:03:03]}  h5 {[%clk 0:02:10]} 17. Nc5 {[%clk 0:03:02]}  Bb5 {[%clk 0:02:05]} 18. Rc1 {[%clk 0:03:01]}  Bf8 {[%clk 0:01:58]} 19. h3 {[%clk 0:03:00]}  Bxc5 {[%clk 0:01:57]} 20. Rxc5 {[%clk 0:02:57]}  a5 {[%clk 0:01:52]} 21. Qd2 {[%clk 0:02:53]}  a4 {[%clk 0:01:16]} 22. Rec1 {[%clk 0:02:52]}  b3 {[%clk 0:01:15]} 23. axb3 {[%clk 0:02:36]}  axb3 {[%clk 0:01:16]} 24. Bf1 {[%clk 0:02:30]}  Na7 {[%clk 0:00:45]} 25. Bg2 {[%clk 0:02:19]}  O-O {[%clk 0:00:41]} 26. g4 {[%clk 0:02:19]}  hxg4 {[%clk 0:00:39]} 27. hxg4 {[%clk 0:02:20]}  Ne7 {[%clk 0:00:35]} 28. Bh4 {[%clk 0:02:19]}  Rb7 {[%clk 0:00:27]} 29. Bf6 {[%clk 0:02:19]}  Rfb8 {[%clk 0:00:13]} 30. f5 {[%clk 0:02:17]}  Kf8 {[%clk 0:00:12]} 31. Qh6+ {[%clk 0:01:54]}  Ke8 {[%clk 0:00:12]} 32. Ng5 {[%clk 0:01:55]}  exf5 {[%clk 0:00:12]} 33. Qg7 {[%clk 0:01:34]}  Nac6 {[%clk 0:00:10]} 34. Qxf7+ {[%clk 0:01:33]}  Kd8 {[%clk 0:00:08]} 35. Rxd5+ {[%clk 0:01:29]}  Rd7 {[%clk 0:00:02]} 36. Rxd7+ {[%clk 0:01:23]}  Kxd7 {[%clk 0:00:03]} 37. Bxc6+ {[%clk 0:01:22]} 1-0


[Site "https://www.chess.com"]

[Event "Titled Tuesday Blitz November 29 Late 2022"]
[White "Leebit02"]
[Black "Maatman, Nick"]
[BlackFideId "1040391"]
[WhiteElo "2307"]
[BlackElo "2655"]
[Result "1/2-1/2"]
[Round "01"]
[TimeControl "180+1"]
[Date "2022.11.30"]
[WhiteClock "0:00:18"]
[BlackClock "0:00:16"]

1. e4 {[%clk 0:03:00]}  e6 {[%clk 0:02:59]} 2. d4 {[%clk 0:02:57]}  d5 {[%clk 0:02:59]} 3. e5 {[%clk 0:02:56]}  c5 {[%clk 0:03:00]} 4. c3 {[%clk 0:02:56]}  Qb6 {[%clk 0:02:59]} 5. Nf3 {[%clk 0:02:55]}  Nc6 {[%clk 0:02:59]} 6. Bd3 {[%clk 0:02:51]}  cxd4 {[%clk 0:02:59]} 7. O-O {[%clk 0:02:51]}  Bd7 {[%clk 0:03:00]} 8. Re1 {[%clk 0:02:51]}  Nge7 {[%clk 0:02:59]} 9. a3 {[%clk 0:02:47]}  a6 {[%clk 0:02:50]} 10. b4 {[%clk 0:02:45]}  dxc3 {[%clk 0:02:42]} 11. Nxc3 {[%clk 0:02:45]}  Ng6 {[%clk 0:02:40]} 12. b5 {[%clk 0:02:12]}  Nd4 {[%clk 0:02:25]} 13. bxa6 {[%clk 0:01:40]}  Nxf3+ {[%clk 0:02:22]} 14. Qxf3 {[%clk 0:01:39]}  bxa6 {[%clk 0:02:22]} 15. Be3 {[%clk 0:01:23]}  Bc5 {[%clk 0:02:17]} 16. Rab1 {[%clk 0:01:17]}  Qa7 {[%clk 0:02:17]} 17. Bxc5 {[%clk 0:00:49]}  Qxc5 {[%clk 0:02:18]} 18. Bxg6 {[%clk 0:00:23]}  hxg6 {[%clk 0:02:13]} 19. Ne2 {[%clk 0:00:23]}  O-O {[%clk 0:02:09]} 20. h4 {[%clk 0:00:22]}  Bb5 {[%clk 0:02:08]} 21. Nf4 {[%clk 0:00:22]}  Rac8 {[%clk 0:02:05]} 22. h5 {[%clk 0:00:21]}  Qc3 {[%clk 0:01:35]} 23. Qg4 {[%clk 0:00:22]}  Bd3 {[%clk 0:01:21]} 24. Re3 {[%clk 0:00:19]}  Qc2 {[%clk 0:01:12]} 25. Rbe1 {[%clk 0:00:17]}  Bf5 {[%clk 0:01:11]} 26. Qg5 {[%clk 0:00:18]}  Rc4 {[%clk 0:01:05]} 27. h6 {[%clk 0:00:18]}  Rfc8 {[%clk 0:00:48]} 28. hxg7 {[%clk 0:00:17]}  Kxg7 {[%clk 0:00:45]} 29. Nh5+ {[%clk 0:00:18]}  Kf8 {[%clk 0:00:33]} 30. Nf6 {[%clk 0:00:18]}  Qd2 {[%clk 0:00:29]} 31. Qh6+ {[%clk 0:00:18]}  Ke7 {[%clk 0:00:29]} 32. Qg5 {[%clk 0:00:17]}  Kf8 {[%clk 0:00:23]} 33. Qh6+ {[%clk 0:00:18]}  Ke7 {[%clk 0:00:23]} 34. Qg5 {[%clk 0:00:18]}  Kf8 {[%clk 0:00:16]} 1/2-1/2


[Site "https://www.chess.com"]

[Event "Titled Tuesday Blitz November 29 Late 2022"]
[White "Lopez Perdomo, Juan David"]
[Black "Riff, Vincent"]
[WhiteFideId "4405137"]
[BlackFideId "617776"]
[WhiteElo "1965"]
[BlackElo "2369"]
[Result "0-1"]
[Round "01"]
[TimeControl "180+1"]
[Date "2022.11.30"]
[WhiteClock "0:00:02"]
[BlackClock "0:00:40"]

1. e4 {[%clk 0:02:59]}  c5 {[%clk 0:02:59]} 2. d4 {[%clk 0:02:56]}  cxd4 {[%clk 0:02:58]} 3. c3 {[%clk 0:02:57]}  Nf6 {[%clk 0:02:50]} 4. e5 {[%clk 0:02:56]}  Nd5 {[%clk 0:02:50]} 5. Nf3 {[%clk 0:02:57]}  d6 {[%clk 0:02:49]} 6. exd6 {[%clk 0:02:57]}  e6 {[%clk 0:02:47]} 7. cxd4 {[%clk 0:02:58]}  Bxd6 {[%clk 0:02:47]} 8. Be2 {[%clk 0:02:59]}  Nc6 {[%clk 0:02:47]} 9. O-O {[%clk 0:03:00]}  O-O {[%clk 0:02:40]} 10. Nc3 {[%clk 0:03:00]}  Nce7 {[%clk 0:02:39]} 11. Ne4 {[%clk 0:02:47]}  Bb8 {[%clk 0:02:20]} 12. Bg5 {[%clk 0:02:47]}  f6 {[%clk 0:02:17]} 13. Bd2 {[%clk 0:02:37]}  Ng6 {[%clk 0:02:13]} 14. Bc4 {[%clk 0:02:27]}  b6 {[%clk 0:02:02]} 15. Qb3 {[%clk 0:02:26]}  Bb7 {[%clk 0:02:01]} 16. Nc3 {[%clk 0:02:20]}  Kh8 {[%clk 0:01:59]} 17. Nxd5 {[%clk 0:02:11]}  Bxd5 {[%clk 0:01:57]} 18. Bxd5 {[%clk 0:02:11]}  Qxd5 {[%clk 0:01:57]} 19. Qxd5 {[%clk 0:02:11]}  exd5 {[%clk 0:01:58]} 20. Rfe1 {[%clk 0:02:07]}  Bd6 {[%clk 0:01:57]} 21. Rac1 {[%clk 0:02:05]}  Rac8 {[%clk 0:01:51]} 22. g3 {[%clk 0:01:57]}  Kg8 {[%clk 0:01:40]} 23. a4 {[%clk 0:01:49]}  Kf7 {[%clk 0:01:35]} 24. b4 {[%clk 0:01:49]}  Ne7 {[%clk 0:01:34]} 25. b5 {[%clk 0:01:47]}  h5 {[%clk 0:01:31]} 26. h4 {[%clk 0:01:26]}  Rc4 {[%clk 0:01:06]} 27. Rxc4 {[%clk 0:01:15]}  dxc4 {[%clk 0:01:07]} 28. Rc1 {[%clk 0:01:06]}  Rc8 {[%clk 0:01:03]} 29. Be3 {[%clk 0:01:06]}  Nd5 {[%clk 0:01:02]} 30. Nd2 {[%clk 0:01:06]}  c3 {[%clk 0:00:59]} 31. Ne4 {[%clk 0:01:06]}  Ba3 {[%clk 0:00:56]} 32. Rc2 {[%clk 0:01:05]}  Bb2 {[%clk 0:00:55]} 33. Nd6+ {[%clk 0:00:57]}  Ke6 {[%clk 0:00:51]} 34. Nxc8 {[%clk 0:00:57]}  Nb4 {[%clk 0:00:52]} 35. Re2 {[%clk 0:00:49]}  Kd5 {[%clk 0:00:52]} 36. Nxa7 {[%clk 0:00:39]}  Kc4 {[%clk 0:00:52]} 37. Nc6 {[%clk 0:00:39]}  Nd5 {[%clk 0:00:47]} 38. Kf1 {[%clk 0:00:19]}  Kd3 {[%clk 0:00:46]} 39. Ke1 {[%clk 0:00:14]}  c2 {[%clk 0:00:44]} 40. a5 {[%clk 0:00:09]}  bxa5 {[%clk 0:00:44]} 41. b6 {[%clk 0:00:09]}  Bc3+ {[%clk 0:00:42]} 42. Kf1 {[%clk 0:00:07]}  Nxb6 {[%clk 0:00:42]} 43. Nxa5 {[%clk 0:00:02]}  Bxa5 {[%clk 0:00:41]} 44. d5 {[%clk 0:00:02]}  Nxd5 {[%clk 0:00:41]} 45. Bc1 {[%clk 0:00:02]}  Bc3 {[%clk 0:00:40]} 46. Re8 {[%clk 0:00:02]}  Bd2 {[%clk 0:00:40]} 0-1


[Site "https://www.chess.com"]

[Event "Titled Tuesday Blitz November 29 Late 2022"]
[White "Maksimovic, Bojan"]
[Black "Gajwa Ankit"]
[WhiteFideId "14408120"]
[BlackFideId "5077834"]
[WhiteElo "2447"]
[BlackElo "2145"]
[Result "0-1"]
[Round "01"]
[TimeControl "180+1"]
[Date "2022.11.30"]
[WhiteClock "0:00:01"]
[BlackClock "0:01:43"]

1. e4 {[%clk 0:03:00]}  c5 {[%clk 0:02:59]} 2. Nf3 {[%clk 0:03:01]}  d6 {[%clk 0:03:00]} 3. d4 {[%clk 0:03:01]}  cxd4 {[%clk 0:03:00]} 4. Nxd4 {[%clk 0:03:02]}  Nf6 {[%clk 0:03:01]} 5. Nc3 {[%clk 0:03:03]}  Nc6 {[%clk 0:03:01]} 6. Bg5 {[%clk 0:03:02]}  e6 {[%clk 0:03:01]} 7. Qd2 {[%clk 0:03:02]}  a6 {[%clk 0:03:02]} 8. O-O-O {[%clk 0:03:02]}  Bd7 {[%clk 0:03:02]} 9. f3 {[%clk 0:03:02]}  h6 {[%clk 0:03:01]} 10. Be3 {[%clk 0:03:01]}  b5 {[%clk 0:03:02]} 11. Nxc6 {[%clk 0:02:56]}  Bxc6 {[%clk 0:03:02]} 12. Ne2 {[%clk 0:02:46]}  Rc8 {[%clk 0:02:59]} 13. Kb1 {[%clk 0:02:45]}  Qc7 {[%clk 0:02:58]} 14. Nd4 {[%clk 0:02:40]}  Bb7 {[%clk 0:02:57]} 15. g4 {[%clk 0:02:41]}  Nd7 {[%clk 0:02:53]} 16. Be2 {[%clk 0:01:23]}  Be7 {[%clk 0:02:48]} 17. h4 {[%clk 0:01:22]}  d5 {[%clk 0:02:44]} 18. exd5 {[%clk 0:01:22]}  Bxd5 {[%clk 0:02:44]} 19. g5 {[%clk 0:01:12]}  h5 {[%clk 0:02:42]} 20. g6 {[%clk 0:01:09]}  fxg6 {[%clk 0:02:42]} 21. Rhg1 {[%clk 0:01:01]}  Ne5 {[%clk 0:02:34]} 22. Bf4 {[%clk 0:00:59]}  Bf6 {[%clk 0:02:34]} 23. Rxg6 {[%clk 0:00:49]}  Qf7 {[%clk 0:02:09]} 24. Rgg1 {[%clk 0:00:47]}  Nc4 {[%clk 0:02:05]} 25. Bxc4 {[%clk 0:00:41]}  Rxc4 {[%clk 0:02:05]} 26. Be3 {[%clk 0:00:12]}  O-O {[%clk 0:02:02]} 27. Nb3 {[%clk 0:00:12]}  Rfc8 {[%clk 0:02:01]} 28. c3 {[%clk 0:00:13]}  b4 {[%clk 0:02:00]} 29. cxb4 {[%clk 0:00:11]}  Bxf3 {[%clk 0:01:52]} 30. Rc1 {[%clk 0:00:08]}  Be4+ {[%clk 0:01:52]} 31. Ka1 {[%clk 0:00:09]}  Rc2 {[%clk 0:01:52]} 32. Qd1 {[%clk 0:00:01]}  Bxb2+ {[%clk 0:01:51]} 33. Kb1 {[%clk 0:00:01]}  Rd2+ {[%clk 0:01:48]} 34. Rc2 {[%clk 0:00:01]}  Rdxc2 {[%clk 0:01:43]} 0-1


[Site "https://www.chess.com"]

[Event "Titled Tuesday Blitz November 29 Late 2022"]
[White "Marcolino, Daniel Mattos"]
[Black "Marczuk, Dominik"]
[WhiteFideId "2106841"]
[BlackFideId "1111264"]
[WhiteElo "2114"]
[BlackElo "2153"]
[Result "0-1"]
[Round "01"]
[TimeControl "180+1"]
[Date "2022.11.30"]
[WhiteClock "0:00:39"]
[BlackClock "0:00:57"]

1. d4 {[%clk 0:03:00]}  Nf6 {[%clk 0:02:55]} 2. Nf3 {[%clk 0:03:01]}  g6 {[%clk 0:02:55]} 3. g3 {[%clk 0:03:01]}  Bg7 {[%clk 0:02:49]} 4. Bg2 {[%clk 0:03:02]}  O-O {[%clk 0:02:50]} 5. O-O {[%clk 0:03:02]}  d6 {[%clk 0:02:49]} 6. b3 {[%clk 0:03:01]}  e5 {[%clk 0:02:47]} 7. dxe5 {[%clk 0:03:00]}  dxe5 {[%clk 0:02:48]} 8. Ba3 {[%clk 0:03:01]}  Re8 {[%clk 0:02:47]} 9. c4 {[%clk 0:02:36]}  Nc6 {[%clk 0:02:41]} 10. Nc3 {[%clk 0:02:34]}  Bd7 {[%clk 0:02:32]} 11. e3 {[%clk 0:02:32]}  Qc8 {[%clk 0:02:22]} 12. Qc2 {[%clk 0:02:30]}  Bf5 {[%clk 0:02:21]} 13. e4 {[%clk 0:02:13]}  Bg4 {[%clk 0:02:20]} 14. Nd5 {[%clk 0:01:58]}  Bxf3 {[%clk 0:02:16]} 15. Bxf3 {[%clk 0:01:56]}  Nd4 {[%clk 0:02:16]} 16. Qd1 {[%clk 0:01:57]}  Qd7 {[%clk 0:02:08]} 17. Bb2 {[%clk 0:01:52]}  c6 {[%clk 0:02:07]} 18. Nxf6+ {[%clk 0:01:52]}  Bxf6 {[%clk 0:02:07]} 19. Bg2 {[%clk 0:01:50]}  Rad8 {[%clk 0:02:06]} 20. Bxd4 {[%clk 0:01:43]}  exd4 {[%clk 0:02:05]} 21. Qd3 {[%clk 0:01:44]}  a5 {[%clk 0:01:51]} 22. f4 {[%clk 0:01:43]}  a4 {[%clk 0:01:51]} 23. e5 {[%clk 0:01:43]}  Be7 {[%clk 0:01:50]} 24. Rab1 {[%clk 0:01:36]}  a3 {[%clk 0:01:41]} 25. b4 {[%clk 0:01:32]}  Ra8 {[%clk 0:01:36]} 26. c5 {[%clk 0:01:32]}  Red8 {[%clk 0:01:34]} 27. Rb3 {[%clk 0:01:33]}  f6 {[%clk 0:01:20]} 28. Rxa3 {[%clk 0:01:19]}  Rxa3 {[%clk 0:01:19]} 29. Qxa3 {[%clk 0:01:20]}  d3 {[%clk 0:01:19]} 30. Qb3+ {[%clk 0:01:14]}  Kg7 {[%clk 0:01:18]} 31. exf6+ {[%clk 0:01:02]}  Bxf6 {[%clk 0:01:18]} 32. Rd1 {[%clk 0:01:01]}  Qd4+ {[%clk 0:01:18]} 33. Kh1 {[%clk 0:01:01]}  d2 {[%clk 0:01:19]} 34. a4 {[%clk 0:00:56]}  Re8 {[%clk 0:01:18]} 35. h4 {[%clk 0:00:53]}  Re1+ {[%clk 0:01:18]} 36. Kh2 {[%clk 0:00:52]}  Re2 {[%clk 0:01:01]} 37. Qf3 {[%clk 0:00:43]}  Rf2 {[%clk 0:00:58]} 38. Qe4 {[%clk 0:00:39]}  Qxe4 {[%clk 0:00:57]} 0-1


[Site "https://www.chess.com"]

[Event "Titled Tuesday Blitz November 29 Late 2022"]
[White "Mekhitarian, Krikor Sevag"]
[Black "Shapiro, Daniel"]
[WhiteFideId "2107660"]
[BlackFideId "2001780"]
[WhiteElo "2604"]
[BlackElo "2324"]
[Result "1-0"]
[Round "01"]
[TimeControl "180+1"]
[Date "2022.11.30"]
[WhiteClock "0:02:16"]
[BlackClock "0:01:22"]

1. Nf3 {[%clk 0:03:00]}  Nf6 {[%clk 0:02:59]} 2. c4 {[%clk 0:03:00]}  e6 {[%clk 0:02:58]} 3. Nc3 {[%clk 0:02:58]}  d5 {[%clk 0:02:57]} 4. e3 {[%clk 0:02:58]}  Be7 {[%clk 0:02:52]} 5. b3 {[%clk 0:02:58]}  O-O {[%clk 0:02:52]} 6. Bb2 {[%clk 0:02:59]}  c6 {[%clk 0:02:50]} 7. Qc2 {[%clk 0:02:58]}  b6 {[%clk 0:02:49]} 8. Rg1 {[%clk 0:02:57]}  c5 {[%clk 0:02:29]} 9. g4 {[%clk 0:02:51]}  d4 {[%clk 0:02:28]} 10. exd4 {[%clk 0:02:47]}  Bb7 {[%clk 0:02:23]} 11. d5 {[%clk 0:02:40]}  exd5 {[%clk 0:02:22]} 12. g5 {[%clk 0:02:40]}  Ne4 {[%clk 0:02:22]} 13. Nxd5 {[%clk 0:02:40]}  Bxd5 {[%clk 0:02:16]} 14. cxd5 {[%clk 0:02:41]}  Qxd5 {[%clk 0:02:11]} 15. Bc4 {[%clk 0:02:24]}  Qb7 {[%clk 0:02:10]} 16. Bd3 {[%clk 0:02:24]}  f5 {[%clk 0:01:46]} 17. gxf6 {[%clk 0:02:20]}  Nxf6 {[%clk 0:01:36]} 18. Ng5 {[%clk 0:02:19]}  Nc6 {[%clk 0:01:23]} 19. Bc4+ {[%clk 0:02:15]}  Kh8 {[%clk 0:01:22]} 20. Bxf6 {[%clk 0:02:16]} 1-0


[Site "https://www.chess.com"]

[Event "Titled Tuesday Blitz November 29 Late 2022"]
[White "Melaugh, Shane"]
[Black "Moroni, Luca Jr"]
[WhiteFideId "2509580"]
[BlackFideId "865834"]
[WhiteElo "2025"]
[BlackElo "2573"]
[Result "0-1"]
[Round "01"]
[TimeControl "180+1"]
[Date "2022.11.30"]
[WhiteClock "0:01:55"]
[BlackClock "0:02:32"]

1. c4 {[%clk 0:03:00]}  d6 {[%clk 0:03:00]} 2. Nc3 {[%clk 0:03:00]}  e5 {[%clk 0:03:01]} 3. g3 {[%clk 0:03:00]}  g6 {[%clk 0:03:01]} 4. Bg2 {[%clk 0:03:01]}  Bg7 {[%clk 0:03:02]} 5. e4 {[%clk 0:03:00]}  Nc6 {[%clk 0:03:02]} 6. Nge2 {[%clk 0:03:01]}  Nge7 {[%clk 0:03:03]} 7. d3 {[%clk 0:03:00]}  O-O {[%clk 0:03:03]} 8. h4 {[%clk 0:03:00]}  h5 {[%clk 0:03:02]} 9. Be3 {[%clk 0:02:58]}  Nd4 {[%clk 0:03:02]} 10. O-O {[%clk 0:02:48]}  c6 {[%clk 0:03:00]} 11. b4 {[%clk 0:02:30]}  a5 {[%clk 0:02:59]} 12. a3 {[%clk 0:02:26]}  Kh7 {[%clk 0:02:57]} 13. Kh2 {[%clk 0:02:19]}  Be6 {[%clk 0:02:54]} 14. Rb1 {[%clk 0:02:13]}  axb4 {[%clk 0:02:53]} 15. axb4 {[%clk 0:02:14]}  Qd7 {[%clk 0:02:53]} 16. b5 {[%clk 0:02:13]}  f5 {[%clk 0:02:52]} 17. Bg5 {[%clk 0:02:11]}  f4 {[%clk 0:02:47]} 18. Nxd4 {[%clk 0:02:06]}  exd4 {[%clk 0:02:45]} 19. Na4 {[%clk 0:02:06]}  fxg3+ {[%clk 0:02:38]} 20. fxg3 {[%clk 0:02:02]}  Rxf1 {[%clk 0:02:38]} 21. Bxf1 {[%clk 0:02:03]}  Bg4 {[%clk 0:02:38]} 22. Qb3 {[%clk 0:02:01]}  Rf8 {[%clk 0:02:35]} 23. Rb2 {[%clk 0:01:58]}  Rxf1 {[%clk 0:02:33]} 24. bxc6 {[%clk 0:01:57]}  bxc6 {[%clk 0:02:34]} 25. Qb7 {[%clk 0:01:55]}  Bf3 {[%clk 0:02:32]} 0-1


[Site "https://www.chess.com"]

[Event "Titled Tuesday Blitz November 29 Late 2022"]
[White "Melikyan, Gnel"]
[Black "Tarnowska, Aleksandra"]
[WhiteFideId "54109990"]
[BlackFideId "1180967"]
[WhiteElo "2138"]
[BlackElo "1776"]
[Result "1-0"]
[Round "01"]
[TimeControl "180+1"]
[Date "2022.11.30"]
[WhiteClock "0:01:12"]
[BlackClock "0:00:05"]

1. d4 {[%clk 0:02:55]}  d5 {[%clk 0:02:58]} 2. c4 {[%clk 0:02:55]}  c6 {[%clk 0:02:55]} 3. Nc3 {[%clk 0:02:55]}  Nf6 {[%clk 0:02:53]} 4. e3 {[%clk 0:02:51]}  Bf5 {[%clk 0:02:51]} 5. Qb3 {[%clk 0:02:46]}  Qb6 {[%clk 0:02:47]} 6. cxd5 {[%clk 0:02:38]}  Qxb3 {[%clk 0:02:42]} 7. axb3 {[%clk 0:02:37]}  Nxd5 {[%clk 0:02:31]} 8. Nxd5 {[%clk 0:02:30]}  cxd5 {[%clk 0:02:30]} 9. Nf3 {[%clk 0:02:31]}  e6 {[%clk 0:02:25]} 10. Bd2 {[%clk 0:02:28]}  Bd6 {[%clk 0:02:06]} 11. Bb5+ {[%clk 0:02:23]}  Nd7 {[%clk 0:01:49]} 12. Ke2 {[%clk 0:02:16]}  Ke7 {[%clk 0:01:40]} 13. Rhc1 {[%clk 0:02:14]}  a6 {[%clk 0:01:36]} 14. Bd3 {[%clk 0:01:56]}  Bxd3+ {[%clk 0:01:19]} 15. Kxd3 {[%clk 0:01:55]}  Rhc8 {[%clk 0:01:19]} 16. g3 {[%clk 0:01:48]}  f6 {[%clk 0:00:56]} 17. e4 {[%clk 0:01:44]}  dxe4+ {[%clk 0:00:49]} 18. Kxe4 {[%clk 0:01:43]}  Nb6 {[%clk 0:00:39]} 19. Rxc8 {[%clk 0:01:30]}  Rxc8 {[%clk 0:00:39]} 20. Rc1 {[%clk 0:01:31]}  Rxc1 {[%clk 0:00:37]} 21. Bxc1 {[%clk 0:01:30]}  Nd5 {[%clk 0:00:38]} 22. Bd2 {[%clk 0:01:28]}  Kd7 {[%clk 0:00:29]} 23. Kd3 {[%clk 0:01:27]}  Kc6 {[%clk 0:00:28]} 24. Ne1 {[%clk 0:01:25]}  Kb5 {[%clk 0:00:13]} 25. Nc2 {[%clk 0:01:25]}  h6 {[%clk 0:00:06]} 26. Na3+ {[%clk 0:01:23]}  Kc6 {[%clk 0:00:06]} 27. Nc4 {[%clk 0:01:23]}  Bb4 {[%clk 0:00:06]} 28. Bc1 {[%clk 0:01:21]}  b5 {[%clk 0:00:05]} 29. Ne3 {[%clk 0:01:20]}  Nxe3 {[%clk 0:00:05]} 30. fxe3 {[%clk 0:01:21]}  Bd6 {[%clk 0:00:05]} 31. Bd2 {[%clk 0:01:20]}  Kb6 {[%clk 0:00:06]} 32. e4 {[%clk 0:01:20]}  Be7 {[%clk 0:00:05]} 33. h4 {[%clk 0:01:20]}  a5 {[%clk 0:00:04]} 34. h5 {[%clk 0:01:20]}  Kc6 {[%clk 0:00:02]} 35. Bxa5 {[%clk 0:01:19]}  Bd6 {[%clk 0:00:02]} 36. g4 {[%clk 0:01:19]}  Bg3 {[%clk 0:00:02]} 37. Bb4 {[%clk 0:01:19]}  Bd6 {[%clk 0:00:01]} 38. Bxd6 {[%clk 0:01:11]}  Kxd6 {[%clk 0:00:02]} 39. Kc3 {[%clk 0:01:10]}  Kc6 {[%clk 0:00:02]} 40. Kb4 {[%clk 0:01:10]}  Kb6 {[%clk 0:00:02]} 41. d5 {[%clk 0:01:11]}  exd5 {[%clk 0:00:02]} 42. exd5 {[%clk 0:01:11]}  Kc7 {[%clk 0:00:02]} 43. Kxb5 {[%clk 0:01:11]}  Kd6 {[%clk 0:00:03]} 44. Kc4 {[%clk 0:01:12]}  Ke5 {[%clk 0:00:03]} 45. Kc5 {[%clk 0:01:12]}  g6 {[%clk 0:00:02]} 46. hxg6 {[%clk 0:01:12]}  f5 {[%clk 0:00:02]} 47. gxf5 {[%clk 0:01:12]}  Kf6 {[%clk 0:00:02]} 48. d6 {[%clk 0:01:12]}  h5 {[%clk 0:00:03]} 49. d7 {[%clk 0:01:12]}  Ke7 {[%clk 0:00:04]} 50. Kc6 {[%clk 0:01:12]}  h4 {[%clk 0:00:04]} 51. Kc7 {[%clk 0:01:12]}  h3 {[%clk 0:00:05]} 52. d8=Q# {[%clk 0:01:12]} 1-0


[Site "https://www.chess.com"]